bitfinex-derivatives/quotes_BTCF0:USTF0_20251023
["timestamp","ask_amount","ask_price","bid_price","bid_amount"]
[1761224886876,0.62791901,109090.0,109080.0,0.17336141]
[1761224887380,0.64181901,109090.0,109080.0,0.17336161]
[1761224887978,0.64381901,109090.0,109080.0,0.17336161]
[1761224891082,0.5035015,109090.0,109080.0,0.04531791]
[1761224891284,0.1350035,109080.0,109070.0,0.02252]
[1761224891484,0.1489119,109070.0,109060.0,0.1368659]
[1761224891783,0.31922941,109070.0,109060.0,0.1596433]
[1761224895879,0.31922941,109070.0,109060.0,0.1596479]
[1761224896085,0.31922941,109070.0,109060.0,0.0679674]
[1761224896285,0.31922941,109070.0,109060.0,0.08153953]
[1761224897480,0.48954692,109070.0,109060.0,0.08153953]
[1761224897785,0.64178941,109070.0,109060.0,0.08153953]
[1761224898483,0.64178941,109070.0,109060.0,0.05876213]
[1761224898785,1.43210692,109070.0,109060.0,0.01357213]
[1761224898978,0.1489289,109050.0,109040.0,0.16155362]
[1761224899279,0.31924641,109050.0,109040.0,0.09265699]
[1761224899488,0.1489289,109050.0,109040.0,0.06798407]
[1761224899671,0.31924641,109050.0,109040.0,0.06798407]
[1761224900085,0.31924641,109050.0,109040.0,0.06898407]
[1761224900290,0.1489289,109050.0,109040.0,0.16068147]
[1761224900789,0.31924641,109050.0,109040.0,0.17439147]
[1761224901194,0.31924641,109050.0,109040.0,0.13801147]
[1761224901492,1.57212392,109050.0,109040.0,0.02379407]
[1761224901792,1.29212392,109050.0,109040.0,0.001]
[1761224902087,1.24212392,109050.0,109040.0,0.001]
[1761224902291,1.54212392,109050.0,109040.0,0.001]
[1761224902492,1.29212392,109050.0,109040.0,0.001]
[1761224903183,0.04458,109030.0,109020.0,0.08683902]
[1761224903389,0.21489751,109030.0,109020.0,0.27993117]
[1761224903586,0.21489751,109030.0,109020.0,0.37164527]
[1761224904187,0.05848,109050.0,109020.0,0.859498]
[1761224904390,0.04458,109050.0,109040.0,0.48900242]
[1761224904585,0.04458,109050.0,109040.0,0.51176684]
[1761224904783,0.04458,109050.0,109040.0,0.53643976]
[1761224905085,0.19523,109060.0,109040.0,0.53643976]
[1761224905290,0.19523,109060.0,109050.0,0.22699751]
[1761224905490,0.18133,109060.0,109050.0,0.24976193]
[1761224905688,0.35164751,109060.0,109050.0,0.24976193]
[1761224907289,0.35264751,109060.0,109050.0,0.24976193]
[1761224907587,0.36643751,109060.0,109050.0,0.06582442]
[1761224907792,0.36743751,109060.0,109050.0,0.06582442]
[1761224908091,0.53675502,109060.0,109050.0,0.04410442]
[1761224908295,0.54775502,109060.0,109050.0,0.02276442]
[1761224908789,0.59775502,109060.0,109030.0,0.12917452]
[1761224909088,0.49030252,109040.0,109030.0,0.02274048]
[1761224909303,0.4722675,109040.0,109030.0,0.07942048]
[1761224909486,0.4584775,109040.0,109030.0,0.24973799]
[1761224909787,0.62879501,109040.0,109030.0,0.34144389]
[1761224909984,0.64258501,109040.0,109030.0,0.24973799]
[1761224910587,0.64258501,109040.0,109030.0,0.07942048]
[1761224910788,0.4722675,109040.0,109030.0,0.06580048]
[1761224910989,0.64258501,109040.0,109030.0,0.06680048]
[1761224911584,0.81290252,109040.0,109030.0,0.06680048]
[1761224912197,0.64258501,109040.0,109030.0,0.06680048]
[1761224912391,0.31998501,109040.0,109030.0,0.06680048]
[1761224914500,0.1496675,109040.0,109030.0,0.06680048]
[1761224914701,0.1496675,109040.0,109030.0,0.02234]
[1761224914996,0.49030252,109040.0,109030.0,0.02372745]
[1761224915194,0.1496675,109040.0,109030.0,0.06678745]
[1761224915395,0.31998501,109040.0,109030.0,0.04506745]
[1761224915596,0.49030252,109040.0,109030.0,0.04506745]
[1761224916291,0.49030252,109040.0,109030.0,0.06678745]
[1761224916694,0.49030252,109040.0,109030.0,0.02372745]
[1761224916902,0.49030252,109040.0,109030.0,0.06678745]
[1761224917297,0.49030252,109040.0,109030.0,0.04506745]
[1761224917699,0.49030252,109040.0,109030.0,0.02372745]
[1761224918199,0.53030252,109040.0,109030.0,0.02372745]
[1761224918396,0.53934196,109040.0,109030.0,0.02372745]
[1761224918600,0.53934196,109040.0,109030.0,0.001]
[1761224919296,0.75965947,109040.0,109030.0,0.001]
[1761224919501,0.53934196,109040.0,109030.0,0.001]
[1761224919706,0.19870694,109040.0,109030.0,0.001]
[1761224919910,0.53934196,109040.0,109030.0,0.001]
[1761224923207,0.82934196,109040.0,109030.0,0.001]
[1761224923605,0.53934196,109040.0,109030.0,0.001]
[1761224925114,0.53934196,109040.0,109030.0,0.04406]
[1761224925310,0.53934196,109040.0,109030.0,0.02234]
[1761224925612,0.53934196,109040.0,109030.0,0.001]
[1761224925804,0.53934196,109040.0,109030.0,0.02375691]
[1761224926204,0.53934196,109040.0,109030.0,0.04509691]
[1761224926502,0.53934196,109040.0,109030.0,0.02375691]
[1761224929311,0.83934196,109040.0,109030.0,0.02375691]
[1761224929716,0.53934196,109040.0,109030.0,0.02375691]
[1761224929914,0.77934196,109040.0,109030.0,0.02375691]
[1761224930119,0.53934196,109040.0,109030.0,0.02375691]
[1761224930714,0.36902445,109040.0,109030.0,0.02375691]
[1761224930918,0.53934196,109040.0,109030.0,0.02375691]
[1761224931317,0.19870694,109040.0,109030.0,0.02375691]
[1761224931517,0.53934196,109040.0,109030.0,0.02375691]
[1761224931914,0.19870694,109040.0,109030.0,0.02375691]
[1761224932106,0.53934196,109040.0,109030.0,0.02375691]
[1761224935218,0.81934196,109040.0,109030.0,0.02375691]
[1761224935625,0.81934196,109040.0,109030.0,0.001]
[1761224936314,0.81934196,109040.0,109030.0,0.02387]
[1761224936514,0.53934196,109040.0,109030.0,0.001]
[1761224937322,0.24815533,109040.0,109030.0,0.02387]
[1761224937524,0.58879035,109040.0,109030.0,0.02387]
[1761224937723,0.53934196,109040.0,109030.0,0.02387]
[1761224938023,0.53934196,109040.0,109030.0,0.001]
[1761224938323,0.58879035,109040.0,109030.0,0.04651816]
[1761224938525,0.58879035,109040.0,109030.0,0.02364816]
[1761224940526,0.1478958,109030.0,109020.0,0.02923782]
[1761224940826,1.43061921,109030.0,109020.0,0.0045861]
[1761224941015,1.15061921,109030.0,109020.0,0.0045861]
[1761224941217,1.14061921,109030.0,109020.0,0.0045861]
[1761224942130,1.14061921,109030.0,109020.0,0.0055861]
[1761224942426,1.50224037,109030.0,109020.0,0.0055861]
[1761224942919,1.46224037,109030.0,109020.0,0.0055861]
[1761224943426,1.86224037,109030.0,109020.0,0.0055861]
[1761224943723,1.91224037,109030.0,109020.0,0.0055861]
[1761224944713,1.89266213,109030.0,109020.0,0.0055861]
[1761224945622,1.72213374,109030.0,109020.0,0.0055861]
[1761224945925,1.84321374,109030.0,109020.0,0.0055861]
[1761224946522,1.67268535,109030.0,109020.0,0.0055861]
[1761224946723,1.84321374,109030.0,109020.0,0.0055861]
[1761224946923,0.1479129,109010.0,109000.0,0.04752172]
[1761224947225,0.67112129,109010.0,109000.0,0.04396]
[1761224947417,0.68044444,109010.0,109000.0,0.04396]
[1761224947620,0.01284,109000.0,108990.0,0.19332134]
[1761224947827,0.22671839,109000.0,108990.0,0.16866962]
[1761224948323,0.22671839,109000.0,108990.0,0.1933981]
[1761224949128,0.31844949,109000.0,108990.0,0.06876777]
[1761224949329,0.31844949,109000.0,108990.0,0.04767777]
[1761224949330,0.34844949,109000.0,108990.0,0.04767777]
[1761224949519,0.25671839,109000.0,108990.0,0.06876777]
[1761224949721,0.34844949,109000.0,108990.0,0.06876777]
[1761224949923,0.34844949,109000.0,108990.0,0.04403929]
[1761224950226,0.34844949,109000.0,108990.0,0.00307929]
[1761224950625,0.34844949,109000.0,108990.0,7.929e-05]
[1761224950825,0.34844949,109000.0,108990.0,0.00107929]
[1761224952331,0.25671839,109000.0,108990.0,0.04503929]
[1761224952629,0.25671839,109000.0,108990.0,0.06755336]
[1761224952930,0.34845019,109000.0,108990.0,0.06755336]
[1761224955030,0.1779218,109000.0,108990.0,0.06755336]
[1761224955230,0.05619,109000.0,108990.0,0.15929296]
[1761224955432,0.05619,109000.0,108990.0,0.08129336]
[1761224955731,0.05619,109000.0,108990.0,0.17303296]
[1761224958930,0.04335,109000.0,108990.0,0.17303296]
[1761224959833,0.37844949,109000.0,108990.0,0.04646336]
[1761224960335,0.37844949,109000.0,108990.0,0.15929296]
[1761224960832,0.28671839,109000.0,108990.0,0.15929296]
[1761224961624,0.11619,109000.0,108990.0,0.15929296]
[1761224961835,0.10335,109000.0,108990.0,0.17303296]
[1761224962036,0.28671839,109000.0,108990.0,0.17303296]
[1761224962635,0.11619,109000.0,108990.0,0.15929296]
[1761224962832,0.28671839,109000.0,108990.0,0.15929296]
[1761224963536,0.37844929,109000.0,108990.0,0.15929266]
[1761224964030,0.37844929,109000.0,108990.0,0.06755336]
[1761224964230,0.11619,109000.0,108990.0,0.15929296]
[1761224964431,0.28671839,109000.0,108990.0,0.15929296]
[1761224964829,0.37844959,109000.0,108990.0,0.15929296]
[1761224966537,0.37844959,109000.0,108990.0,0.06755336]
[1761224966836,0.37844959,109000.0,108970.0,0.03289723]
[1761224966837,0.1476284,108980.0,108970.0,0.03289723]
[1761224967033,0.05588,108970.0,108960.0,0.04484]
[1761224967535,0.22640839,108970.0,108960.0,0.04484]
[1761224967735,0.22649117,108970.0,108960.0,0.1366052]
[1761224967932,0.23649117,108970.0,108960.0,0.1366052]
[1761224968336,0.55921117,108970.0,108960.0,0.1376052]
[1761224969138,0.55921117,108970.0,108960.0,0.1376047]
[1761224969338,0.55921117,108970.0,108960.0,0.04584]
[1761224969529,0.65096747,108970.0,108960.0,0.04584]
[1761224969724,0.65096747,108970.0,108960.0,0.02294]
[1761224970237,0.65096747,108970.0,108960.0,0.1376052]
[1761224970238,0.55921117,108970.0,108960.0,0.1376052]
[1761224972332,0.23649117,108970.0,108960.0,0.1376052]
[1761224972539,0.54925117,108970.0,108960.0,0.1376052]
[1761224973234,0.22649117,108970.0,108960.0,0.1376052]
[1761224973436,0.54925117,108970.0,108960.0,0.1376052]
[1761224973737,0.04288278,108970.0,108960.0,0.32107359]
[1761224974033,0.36564278,108970.0,108960.0,0.1505452]
[1761224974840,0.54925117,108970.0,108960.0,0.1147052]
[1761224975442,0.54925117,108970.0,108960.0,0.1376052]
[1761224975638,0.54925117,108970.0,108960.0,0.04584]
[1761224975946,0.54925117,108970.0,108960.0,0.1376052]
[1761224976341,0.37872278,108970.0,108960.0,0.1376052]
[1761224976741,0.54925117,108970.0,108960.0,0.1376052]
[1761224977145,0.05596278,108970.0,108960.0,0.1376052]
[1761224977442,0.37872278,108970.0,108960.0,0.1505446]
[1761224977643,0.54925117,108970.0,108960.0,0.1376046]
[1761224979043,0.64100727,108970.0,108960.0,0.1376045]
[1761224979439,0.6500997,108970.0,108960.0,0.1376045]
[1761224982448,0.5583436,108970.0,108960.0,0.1376045]
[1761224983140,0.37872278,108970.0,108960.0,0.1505445]
[1761224984543,0.37872278,108970.0,108960.0,0.1376045]
[1761224985248,0.37872278,108970.0,108960.0,0.1505445]
[1761224985547,0.37872278,108970.0,108960.0,0.1376045]
[1761224986045,0.54925117,108970.0,108960.0,0.1376045]
[1761224986749,0.54925117,108970.0,108960.0,0.1376043]
[1761224987348,0.74100707,108970.0,108960.0,0.001]
[1761224987549,1.22100707,108970.0,108960.0,0.001]
[1761224988048,0.96100707,108970.0,108960.0,0.001]
[1761224988245,0.91100707,108970.0,108960.0,0.001]
[1761224988544,0.91100707,108970.0,108960.0,0.04584]
[1761224989446,0.91100707,108970.0,108960.0,0.1376049]
[1761224989644,0.58824707,108970.0,108960.0,0.02294]
[1761224989846,0.91140707,108970.0,108960.0,0.001]
[1761224990550,0.96140707,108970.0,108960.0,0.001]
[1761224991247,0.96140707,108970.0,108960.0,0.04584]
[1761224991446,0.91140707,108970.0,108960.0,0.04584]
[1761224991747,0.91140707,108970.0,108960.0,0.02294]
[1761224991949,0.91140707,108970.0,108960.0,0.04584]
[1761224993138,0.91140707,108970.0,108960.0,0.001]
[1761224993352,0.74087868,108970.0,108960.0,0.001]
[1761224993547,0.74087868,108970.0,108960.0,0.04516]
[1761224993752,0.91140707,108970.0,108960.0,0.04516]
[1761224995454,0.91140707,108970.0,108960.0,0.001]
[1761224995656,0.91140707,108970.0,108960.0,0.02292]
[1761224996249,0.94422792,108970.0,108960.0,0.02292]
[1761224996449,0.94422792,108970.0,108960.0,0.001]
[1761224997049,0.93825962,108970.0,108960.0,0.05950688]
[1761224997248,0.76773123,108970.0,108960.0,0.15127288]
[1761224997454,0.93825962,108970.0,108960.0,0.15127288]
[1761224998460,0.76773123,108970.0,108960.0,0.05950688]
[1761224998652,0.93825962,108970.0,108960.0,0.05950688]
[1761225000160,0.93825962,108970.0,108960.0,0.05850688]
[1761225000460,0.98825962,108970.0,108960.0,0.01434688]
[1761225000759,1.22825962,108970.0,108960.0,0.01434688]
[1761225001746,1.24543877,108970.0,108960.0,0.01434688]
[1761225004555,1.00543877,108970.0,108960.0,0.01434688]
[1761225004766,0.1494843,108950.0,108940.0,0.11828587]
[1761225004950,0.64321967,108950.0,108940.0,0.02650947]
[1761225005156,0.80508455,108950.0,108940.0,0.00458947]
[1761225005457,1.65864077,108950.0,108940.0,0.0043842]
[1761225005662,0.1495011,108930.0,108920.0,0.03289723]
[1761225005972,0.1495095,108920.0,108910.0,0.21837396]
[1761225006258,0.1495095,108920.0,108910.0,0.04416]
[1761225006465,0.21505537,108920.0,108910.0,0.31968327]
[1761225006655,0.22844537,108920.0,108910.0,0.1359679]
[1761225006853,0.32024487,108920.0,108910.0,0.04416]
[1761225007058,0.32024487,108920.0,108910.0,0.1359679]
[1761225007257,0.32024487,108920.0,108910.0,0.1369679]
[1761225007560,0.1495095,108920.0,108910.0,0.1369679]
[1761225007862,0.32024487,108920.0,108910.0,0.1369679]
[1761225008251,0.32024487,108920.0,108910.0,0.001]
[1761225008457,0.1495179,108910.0,108900.0,0.04883489]
[1761225008663,0.64377605,108910.0,108900.0,0.02659489]
[1761225008860,0.38123278,108910.0,108900.0,0.04883489]
[1761225009055,0.55196815,108910.0,108900.0,0.04883489]
[1761225009265,0.47304068,108910.0,108900.0,0.04883489]
[1761225009462,0.64377605,108910.0,108900.0,0.02659489]
[1761225009657,0.64377605,108910.0,108900.0,0.04983489]
[1761225010056,0.64377605,108910.0,108900.0,0.02859489]
[1761225010359,0.64377605,108910.0,108880.0,0.18186473]
[1761225010360,0.05771,108890.0,108880.0,0.18186473]
[1761225010551,0.05771,108880.0,108870.0,0.04416]
[1761225010755,0.05771,108870.0,108860.0,0.18647507]
[1761225010960,0.05771,108870.0,108860.0,0.32431321]
[1761225011160,0.21505537,108870.0,108860.0,0.32431321]
[1761225011359,0.21512504,108870.0,108860.0,0.32431321]
[1761225011755,6.967e-05,108870.0,108860.0,0.89504858]
[1761225012062,6.967e-05,108870.0,108860.0,1.25186581]
[1761225012262,6.967e-05,108870.0,108860.0,1.26114558]
[1761225013366,6.967e-05,108870.0,108860.0,1.22824835]
[1761225013565,6.967e-05,108870.0,108860.0,1.22941183]
[1761225014061,6.967e-05,108870.0,108860.0,1.26259975]
[1761225014268,6.967e-05,108870.0,108860.0,1.22970252]
[1761225014568,6.967e-05,108870.0,108860.0,1.22999321]
[1761225014767,0.02120967,108870.0,108860.0,1.22999321]
[1761225015062,0.04438967,108870.0,108860.0,0.16489316]
[1761225015265,0.04438967,108870.0,108860.0,0.33562853]
[1761225015266,0.20616676,108870.0,108860.0,0.33562853]
[1761225015566,0.03543139,108870.0,108860.0,0.16518385]
[1761225015865,0.04432,108880.0,108870.0,0.1489769]
[1761225016166,0.04432,108880.0,108870.0,0.31971227]
[1761225016467,0.04441684,108880.0,108870.0,0.31971227]
[1761225016666,0.21515221,108880.0,108870.0,0.32203851]
[1761225016865,0.21515221,108880.0,108870.0,0.33573476]
[1761225017061,0.21615221,108880.0,108870.0,0.33573476]
[1761225017459,0.04541684,108880.0,108870.0,0.33573104]
[1761225017759,0.21615221,108880.0,108870.0,0.33573104]
[1761225018366,0.00109684,108880.0,108870.0,0.73573104]
[1761225018867,0.00109684,108880.0,108870.0,0.90646641]
[1761225019266,0.00109684,108880.0,108870.0,0.89277388]
[1761225019656,0.04432,108900.0,108890.0,0.148965]
[1761225019863,0.04432,108900.0,108890.0,0.31970037]
[1761225020160,0.02114,108900.0,108890.0,0.31970037]
[1761225020361,0.64480967,108920.0,108910.0,0.04416]
[1761225020563,0.76480967,108920.0,108910.0,0.04648624]
[1761225020761,0.5940743,108920.0,108910.0,0.13829444]
[1761225020976,0.5940743,108920.0,108910.0,0.15127444]
[1761225021871,0.5960743,108920.0,108910.0,0.05946624]
[1761225022065,0.5960743,108920.0,108910.0,0.04648624]
[1761225022272,0.48499844,108920.0,108910.0,0.04648624]
[1761225022467,0.48499844,108920.0,108890.0,0.253205]
[1761225022468,0.0918215,108900.0,108880.0,0.1489681]
[1761225022673,0.04432,108890.0,108880.0,0.1489681]
[1761225022972,0.04432,108890.0,108880.0,0.16248471]
[1761225024173,0.136145,108890.0,108880.0,0.16248471]
[1761225024574,0.137145,108890.0,108880.0,0.16248471]
[1761225025169,0.137145,108890.0,108880.0,0.16249177]
[1761225027572,0.137145,108890.0,108880.0,0.07066367]
[1761225027776,0.36337914,108890.0,108880.0,0.01352367]
[1761225027970,0.289895,108890.0,108880.0,0.01352367]
[1761225028170,0.289895,108890.0,108880.0,0.03569367]
[1761225028171,0.179895,108890.0,108880.0,0.03569367]
[1761225028486,0.179895,108890.0,108880.0,0.01352367]
[1761225028487,0.39337914,108890.0,108880.0,0.01352367]
[1761225028973,0.39337914,108890.0,108880.0,0.03569367]
[1761225029370,0.39337914,108890.0,108880.0,0.05850367]
[1761225029670,0.39337914,108890.0,108880.0,0.1496134]
[1761225029671,0.04532,108890.0,108880.0,0.1496134]
[1761225030375,0.02214,108890.0,108880.0,0.1496134]
[1761225030983,0.04424,108890.0,108880.0,0.1496134]
[1761225033181,0.04424,108890.0,108880.0,0.17421887]
[1761225034585,0.001,108890.0,108880.0,0.38770301]
[1761225034777,0.001,108890.0,108880.0,0.17421887]
[1761225035282,0.001,108890.0,108880.0,0.18251063]
[1761225035483,0.001,108890.0,108880.0,0.20722588]
[1761225035682,0.001,108890.0,108880.0,0.60722588]
[1761225035874,0.1361784,108910.0,108900.0,0.1495935]
[1761225037084,0.1371784,108910.0,108900.0,0.1495935]
[1761225037383,0.1401784,108910.0,108900.0,0.1495935]
[1761225038083,0.04837,108910.0,108900.0,0.1495935]
[1761225038279,0.1401782,108910.0,108900.0,0.1495935]
[1761225038485,0.1529282,108910.0,108900.0,0.17430788]
[1761225039075,0.36641234,108910.0,108890.0,0.49907338]
[1761225039387,0.05712,108900.0,108890.0,0.53197061]
[1761225039688,0.1361865,108900.0,108890.0,0.53197061]
[1761225039884,0.36242064,108900.0,108890.0,0.49907338]
[1761225040274,0.27060414,108900.0,108890.0,0.49907338]
[1761225040585,0.04637,108900.0,108890.0,0.53197061]
[1761225040786,0.1509365,108900.0,108890.0,0.49907338]
[1761225041285,0.1519365,108900.0,108890.0,0.474359]
[1761225041477,0.1519365,108900.0,108890.0,0.149599]
[1761225042476,0.1391865,108900.0,108890.0,0.149599]
[1761225042677,0.31004219,108900.0,108890.0,0.149599]
[1761225045090,0.31004219,108900.0,108890.0,0.17431338]
[1761225047385,0.1391865,108900.0,108890.0,0.17431338]
[1761225047590,0.31004219,108900.0,108890.0,0.17431338]
[1761225048885,0.49364788,108900.0,108890.0,0.08249438]
[1761225049090,0.32279219,108900.0,108890.0,0.17431928]
[1761225049290,0.31004219,108900.0,108890.0,0.17431928]
[1761225050088,0.04437,108920.0,108910.0,0.1495881]
[1761225050390,0.08199085,108950.0,108940.0,0.1495629]
[1761225050580,0.04917,108950.0,108940.0,0.32041859]
[1761225050787,0.04917,108950.0,108940.0,0.1495629]
[1761225050997,0.04917,108950.0,108940.0,0.17430708]
[1761225051291,0.04917,108950.0,108940.0,0.1495629]
[1761225051790,0.0048,108950.0,108940.0,0.3876592]
[1761225052193,0.0068,108950.0,108940.0,0.36291502]
[1761225052396,0.0068,108950.0,108940.0,0.3876592]
[1761225052690,0.05117,108950.0,108940.0,0.17430708]
[1761225052892,0.05117,108950.0,108940.0,0.1495629]
[1761225053088,0.1429445,108950.0,108940.0,0.1495629]
[1761225053587,0.1439445,108950.0,108940.0,0.1495629]
[1761225053994,0.1429445,108950.0,108940.0,0.1495629]
[1761225054190,0.05117,108950.0,108940.0,0.1495629]
[1761225054386,0.05017,108950.0,108940.0,0.1495629]
[1761225054587,0.05117,108950.0,108940.0,0.1495629]
[1761225055092,0.02907,108950.0,108940.0,0.1495629]
[1761225056191,0.0068,108950.0,108940.0,0.1495629]
[1761225056393,0.0068,108950.0,108940.0,0.76291502]
[1761225057189,0.0058,108950.0,108940.0,0.76291502]
[1761225057891,0.1357528,108970.0,108960.0,0.148356]
[1761225058086,0.2157528,108970.0,108960.0,0.148356]
[1761225058985,0.44227492,108970.0,108960.0,0.02253]
[1761225059189,0.149606,108960.0,108950.0,0.4166145]
[1761225059488,0.149606,108960.0,108950.0,0.4732045]
[1761225059898,0.149606,108960.0,108950.0,0.4391445]
[1761225060097,0.149606,108960.0,108950.0,0.4601945]
[1761225060890,0.149606,108960.0,108950.0,0.1353545]
[1761225061597,0.152606,108960.0,108950.0,0.1353545]
[1761225062300,0.06084,108960.0,108950.0,0.1483645]
[1761225062900,0.152606,108960.0,108950.0,0.1483645]
[1761225063293,0.150606,108960.0,108950.0,0.1483645]
[1761225063897,0.152606,108960.0,108950.0,0.1483645]
[1761225064196,0.151606,108960.0,108950.0,0.1483645]
[1761225064397,0.150606,108960.0,108950.0,0.1483645]
[1761225064701,0.152606,108960.0,108950.0,0.1483645]
[1761225066002,0.152606,108960.0,108950.0,0.1353545]
[1761225066200,0.152606,108960.0,108950.0,0.1353544]
[1761225068601,0.152606,108960.0,108950.0,0.04358]
[1761225069104,0.51024364,108960.0,108950.0,0.02253]
[1761225069305,0.1485145,108950.0,108940.0,0.1353629]
[1761225069604,0.1485145,108950.0,108940.0,0.05659]
[1761225069791,0.1485145,108950.0,108940.0,0.04358]
[1761225070499,0.1495145,108950.0,108940.0,0.1353629]
[1761225070700,0.1505145,108950.0,108940.0,0.04358]
[1761225071898,0.1505145,108950.0,108930.0,0.148165]
[1761225071899,0.1357728,108940.0,108930.0,0.148165]
[1761225074811,0.1485228,108940.0,108930.0,0.1481716]
[1761225075407,0.50616044,108940.0,108930.0,0.02253]
[1761225075710,0.05716,108930.0,108920.0,0.1483842]
[1761225075903,0.0917881,108940.0,108930.0,0.1483818]
[1761225076210,0.1357781,108940.0,108930.0,0.05659]
[1761225076409,0.1357781,108940.0,108930.0,0.02253]
[1761225076410,0.1485281,108940.0,108930.0,0.02253]
[1761225076808,0.1485281,108940.0,108930.0,0.04358]
[1761225077309,0.1485281,108940.0,108930.0,0.1483818]
[1761225077606,0.1357781,108940.0,108930.0,0.1483818]
[1761225080215,0.18134895,108940.0,108930.0,0.04358]
[1761225080406,0.18134895,108940.0,108930.0,0.1353717]
[1761225080606,0.16859895,108940.0,108930.0,0.1483817]
[1761225081109,0.10349924,108950.0,108940.0,0.1483733]
[1761225081311,0.1357649,108950.0,108940.0,0.1483733]
[1761225081507,0.04399,108950.0,108940.0,0.1483733]
[1761225082003,0.04399,108960.0,108950.0,0.1483649]
[1761225082208,0.13733405,108970.0,108960.0,0.1483565]
[1761225082209,0.49305405,108970.0,108960.0,0.1483565]
[1761225082508,0.3057532,108970.0,108960.0,0.1483565]
[1761225082712,0.31580895,108970.0,108960.0,0.1483565]
[1761225082909,0.3061681,108970.0,108960.0,0.1483565]
[1761225083517,0.21441,108970.0,108960.0,0.1483565]
[1761225083814,0.1361681,108970.0,108960.0,0.1483565]
[1761225084006,0.1381681,108970.0,108960.0,0.1483565]
[1761225084806,0.04641,108970.0,108960.0,0.1483565]
[1761225085016,0.138168,108970.0,108960.0,0.1483565]
[1761225085715,0.139168,108970.0,108960.0,0.1483565]
[1761225085918,0.04741,108970.0,108960.0,0.1483565]
[1761225086110,0.003,108970.0,108960.0,0.1483565]
[1761225086314,0.002,108970.0,108960.0,0.50599414]
[1761225086507,0.002,108970.0,108960.0,0.1483565]
[1761225086912,0.001,108970.0,108960.0,0.1483565]
[1761225087114,0.003,108970.0,108960.0,0.1483565]
[1761225087417,0.003,108970.0,108960.0,0.15774683]
[1761225087618,0.0917556,108980.0,108970.0,0.1482581]
[1761225087914,0.15079765,108990.0,108980.0,0.1482497]
[1761225088116,0.6491768,108990.0,108980.0,0.1482497]
[1761225089406,0.6501768,108990.0,108980.0,0.1482497]
[1761225089619,0.6501768,108990.0,108980.0,0.0565]
[1761225090220,0.6501703,108990.0,108980.0,0.1482487]
[1761225090420,0.2701703,108990.0,108980.0,0.1482487]
[1761225090816,0.2701703,108990.0,108980.0,0.0565]
[1761225091026,0.2838403,108990.0,108980.0,0.0437]
[1761225091317,0.2858403,108990.0,108980.0,0.0565]
[1761225091518,0.2721703,108990.0,108980.0,0.0565]
[1761225092423,0.2721703,108990.0,108980.0,0.1482487]
[1761225093725,0.2721703,108990.0,108980.0,0.0565]
[1761225093919,0.2721703,108990.0,108980.0,0.31882191]
[1761225094126,0.2721703,108990.0,108980.0,0.1482487]
[1761225095421,0.2721703,108990.0,108980.0,0.0565]
[1761225096719,0.45641351,108990.0,108980.0,0.0565]
[1761225097017,0.44274351,108990.0,108980.0,0.1482487]
[1761225097516,0.2721703,108990.0,108980.0,0.1482487]
[1761225098417,0.18043,108990.0,108980.0,0.1482487]
[1761225098635,0.1421703,108990.0,108980.0,0.1482487]
[1761225099229,0.1421703,108990.0,108980.0,0.0565]
[1761225099418,0.1558403,108990.0,108980.0,0.0437]
[1761225099619,0.32641351,108990.0,108980.0,0.02262]
[1761225099827,0.32641351,108990.0,108980.0,0.0437]
[1761225100233,0.1473188,108980.0,108970.0,0.0565]
[1761225100422,0.1471372,108970.0,108960.0,0.0437]
[1761225100721,0.31771041,108970.0,108960.0,0.0437]
[1761225100920,0.1471372,108970.0,108960.0,0.0437]
[1761225101738,0.1471372,108970.0,108960.0,0.0565]
[1761225102025,0.1343872,108970.0,108960.0,0.0565]
[1761225102428,0.1343872,108970.0,108960.0,0.1482656]
[1761225103535,0.1343872,108970.0,108960.0,0.0565]
[1761225103729,0.1471372,108970.0,108960.0,0.0565]
[1761225103919,0.1343872,108970.0,108960.0,0.0565]
[1761225104115,0.1343872,108970.0,108960.0,0.1482655]
[1761225105232,0.1471372,108970.0,108960.0,0.1482655]
[1761225105434,0.1343872,108970.0,108960.0,0.1482655]
[1761225105929,0.1471372,108970.0,108960.0,0.0565]
[1761225107631,0.1343872,108970.0,108960.0,0.1482656]
[1761225110131,0.1343872,108970.0,108960.0,0.0565]
[1761225110632,0.1343872,108970.0,108960.0,0.1482656]
[1761225111330,0.16720805,108970.0,108960.0,0.1482656]
[1761225111726,0.16720805,108970.0,108960.0,0.0565]
[1761225111932,0.17995805,108970.0,108960.0,0.0437]
[1761225112733,0.0917741,108950.0,108940.0,0.25021463]
[1761225113036,0.18092495,108950.0,108940.0,0.04378]
[1761225113233,0.1481041,108950.0,108940.0,0.04378]
[1761225113434,0.18092495,108950.0,108940.0,0.04378]
[1761225114129,0.1481041,108950.0,108940.0,0.0578]
[1761225114637,0.1481041,108950.0,108940.0,0.1495825]
[1761225115430,0.1354141,108950.0,108940.0,0.1495825]
[1761225115827,0.1364141,108950.0,108940.0,0.1495825]
[1761225116232,0.1384141,108950.0,108940.0,0.0568]
[1761225116427,0.1374141,108950.0,108940.0,0.0568]
[1761225116732,0.18392495,108950.0,108940.0,0.04378]
[1761225117236,0.1491041,108950.0,108940.0,0.04378]
[1761225117438,0.1501041,108950.0,108940.0,0.04378]
[1761225119034,0.1511041,108950.0,108940.0,0.04378]
[1761225120142,0.1384141,108950.0,108940.0,0.0568]
[1761225120940,0.0947741,108950.0,108940.0,0.4143231]
[1761225121135,0.0947741,108950.0,108940.0,0.0568]
[1761225121332,0.1165041,108950.0,108940.0,0.148578]
[1761225121533,0.1165041,108950.0,108940.0,0.0568]
[1761225121733,0.1384141,108950.0,108940.0,0.148578]
[1761225121933,0.002,108950.0,108940.0,0.872418]
[1761225122139,0.003,108950.0,108940.0,0.872418]
[1761225122338,0.001,108950.0,108940.0,0.872418]
[1761225122535,0.003,108950.0,108940.0,0.872418]
[1761225122740,0.002,108950.0,108940.0,1.04306541]
[1761225122933,0.002,108950.0,108940.0,1.06772239]
[1761225122934,0.003,108950.0,108940.0,1.06772239]
[1761225123134,0.0917572,108970.0,108960.0,0.1485611]
[1761225123334,0.1353972,108970.0,108960.0,0.38072]
[1761225123534,0.1353972,108970.0,108960.0,0.4724811]
[1761225125245,0.0917572,108970.0,108960.0,0.4724811]
[1761225125445,0.0917572,108970.0,108960.0,0.48178734]
[1761225125637,0.0937572,108970.0,108960.0,0.48178734]
[1761225125839,0.002,108970.0,108960.0,0.98767934]
[1761225126046,0.001,108970.0,108960.0,1.4123733]
[1761225126247,0.001,108970.0,108960.0,1.38767934]
[1761225126657,0.001,108970.0,108960.0,1.03014734]
[1761225127342,0.002,108970.0,108960.0,1.03014734]
[1761225127849,0.002,108970.0,108960.0,1.4123333]